[Event "55th Biel Festival MTO 2022"]
[Site "Biel"]
[Date "2022.07.20"]
[Round "7.23"]
[White "Gurel Ediz"]
[Black "Shubin Daniel"]
[Result "1-0"]
[ECO "C06"]
[WhiteElo "2435"]
[BlackElo "2120"]
[Annotator "TA"]
[PlyCount "94"]
[EventDate "2022.07.13"]
[EventType "swiss"]
[EventCountry "SUI"]
[SourceTitle "playchess.com"]
[Source "ChessBase"]
[SourceQuality "1"]
[TimeControl "40/5400+30:1800+30"]

{[%evp 13,94,12,10,12,23,2,30,23,16,26,61,64,84,85,129,84,122,114,134,113,123,137,131,133,126,75,72,58,83,84,163,104,117,75,77,7,21,0,0,0,0,0,0,-10,-19,-114,-36,-15,12,0,0,0,0,-48,-57,-43,-20,0,0,-66,14,-110,0,-178,-193,-237,0,0,0,0,0,0,0,0,108,108,122,0,0,0,0,-254,-243]} 1. e4 {[%emt 0:00:30]} e6 {[%emt 0:00:33]} 2. d4 {[%emt 0:00:08]} d5 {[%emt 0:00:04]} 3. Nd2 {[%emt 0:00:04]} a5 {[%emt 0:00:04]} 4. Ngf3 {[%emt 0:00:48]} Nf6 {[%emt 0:00:39]} 5. Bd3 {[%emt 0:02:12]} c5 {[%emt 0:00:21]} 6. e5 {[%emt 0:02:48]} Nfd7 {[%emt 0:00:14]} 7. c3 {[%emt 0:00:04]} Nc6 {[%emt 0:02:02]} 8. O-O {[%emt 0:00:05] C06: French Tarrasch: 3...Nf6 4 e5 Nfd7 5 Bd3 main lines.} Qb6 {[%emt 0:02:40][%cal Rc5d4]} 9. Re1 {[%emt 0:00:08]} a4 {[%emt 0:04:04][%cal Rc5d4]} 10. dxc5 {[%emt 0:08:52] White has an edge.} Bxc5 {[%emt 0:03:29]} 11. Qe2 {[%emt 0:00:06]} f6 {[%emt 0:14:01]} 12. exf6 {[%emt 0:05:49]} Nxf6 {[%emt 0:00:05] [#]} 13. b4 $146 {[%emt 0:00:49][%cal Bb2b4,Bb4b5][%mdl 32]} ({Predecessor:} 13. Ng5 O-O 14. Ndf3 e5 15. Nxh7 Nxh7 16. Bxh7+ Kxh7 17. Ng5+ Kg8 18. Qd3 Bxf2+ 19. Kh1 {0-1 (35) Bressac,S (2379)-Apicella,M (2501) Cannes 2018}) 13... Bd6 {[%emt 0:10:48]} 14. b5 {[%emt 0:02:25]} Ne7 {[%emt 0:02:30]} 15. Ne5 {[%emt 0:12:55]} O-O {[%emt 0:07:33]} 16. Ndf3 {[%emt 0:00:19]} Nd7 {[%emt 0:02:40]} 17. Be3 {[%emt 0:09:49]} Qc7 {[%emt 0:02:04]} 18. Bd4 {[%emt 0:12:13] White is much more active.} Nf5 {[%emt 0:02:34]} 19. Nxd7 {[%emt 0:00:59]} (19. Rac1 $142) 19... Bxd7 $16 {[%emt 0:00:07]} 20. Be5 {[%emt 0:00:15]} Bxe5 {[%emt 0:07:09]} 21. Nxe5 {[%emt 0:04:46]} Rf6 {[%emt 0:00:14]} (21... Be8 $16) 22. Ng4 {[%emt 0:08:26]} (22. c4 $18) 22... Rf7 {[%emt 0:02:03]} 23. Qe5 {[%emt 0:02:52]} Qc5 {[%emt 0:06:59]} 24. c4 {[%emt 0:02:02]} (24. Rad1 $16) 24... Rc8 $1 $11 {[%emt 0:01:12]} 25. Rac1 {[%emt 0:03:03]} h5 {[%emt 0:08:16]} 26. Ne3 {[%emt 0:02:44]} Nxe3 {[%emt 0:00:26]} 27. fxe3 {[%emt 0:03:18]} dxc4 {[%emt 0:00:57]} 28. Qe4 {[%emt 0:00:21]} Bxb5 {[%emt 0:05:14]} (28... Qxb5 $2 29. Qh7+ Kf8 30. Bg6 $18) 29. Qh7+ {[%emt 0:00:36]} Kf8 {[%emt 0:00:04][%cal Oc4d3,Bg8f8,Bf8f7,Bf7e7][%mdl 32]} 30. Bg6 {[%emt 0:00:13][%csl LRf7,LRh5] [#]} c3 $1 {[%emt 0:05:28]} 31. Bxf7 {[%emt 0:05:16]} (31. Bxh5 Bd3) 31... Kxf7 {[%emt 0:00:04]} 32. Rc2 $1 {[%emt 0:00:36] Threatens to win with Rf2+.} (32. Qe4 Qd5 33. Qxd5 exd5 $15) 32... Qe5 {[%emt 0:02:22]} 33. h3 {[%emt 0:02:55]} (33. Rf2+ $11 {might be stronger.} Ke7 34. Qc2 (34. Qg6 Rf8 $15)) 33... Ke7 $36 {[%emt 0:01:32][%mdl 2048] Black is pushing.} 34. Qg6 {[%emt 0:02:45]} Be8 {[%emt 0:05:18]} 35. Qd3 {[%emt 0:01:12]} Bb5 {[%emt 0:02:03]} 36. Qd1 {[%emt 0:02:12]} (36. Qg6 $1 $11) 36... Rd8 {[%emt 0:01:49]} (36... a3 $15 37. Qf3 Bd3) 37. Qb1 {[%emt 0:02:12]} (37. Qf3 $11 {was the only way to keep the balance.}) 37... Rd3 {[%emt 0:00:38]} (37... Qc5 $17 {aiming for ...Bd3.} 38. Rf2 Rd3) 38. Rf2 $2 {[%emt 0:00:47]} (38. Qb4+ $11 Kd7 39. a3) 38... Qc5 $19 {[%emt 0:00:21]} 39. a3 {[%emt 0:01:29]} Rd2 $2 {[%emt 0:00:47]} (39... Kd6 $19 {And now ...g5 would win.} 40. Qc1 Kc7) 40. Qg6 $11 {[%emt 0:00:54]} Rxf2 {[%emt 0:00:23]} 41. Kxf2 {[%emt 0:30:04][%mdl 4096] Endgame KQR-KQB. Really sharp!} Qe5 {[%emt 0:07:31]} 42. Rc1 {[%emt 0:00:00]} Bc6 {[%emt 0:02:02] ...h4 is the strong threat.} 43. Qg3 {[%emt 0:00:00]} Qf6+ {[%emt 0:05:02] [#]} (43... Qf5+ $1 $11 44. Kg1 c2) 44. Kg1 $1 $16 {[%emt 0:00:00][%mdl 1024] Black must now prevent Rf1. White has strong compensation.} Kd7 {[%emt 0:00:53]} 45. Rf1 {[%emt 0:00:00]} (45. Qe1 $16) 45... h4 $11 {[%emt 0:04:07]} 46. Qg4 {[%emt 0:00:00]} Qe5 {[%emt 0:01:09]} 47. Rf7+ $2 {[%emt 0:00:00][%mdl 8192]} (47. Rd1+ $11 Kc7 48. Qxh4 Qxe3+ 49. Qf2 (49. Kh1 $2 g5 $19)) 47... Kd6 {[%emt 0:06:12][%mdl 32768] Weighted Error Value: White=0.41/Black=0.27 (precise) . Sensor Board Error (Ke4/e5)?} ({Inferior is} 47... Ke8 48. Rxg7 Qxe3+ 49. Kh2 Qe5+ 50. Kh1 $11) 1-0

[Event "55th Biel Festival MTO 2022"]
[Site "Biel"]
[Date "2022.07.20"]
[Round "7.24"]
[White "Gaehwiler Gabriel"]
[Black "Karthik Rajaa"]
[Result "0-1"]
[ECO "E73"]
[WhiteElo "2420"]
[BlackElo "2331"]
[Annotator "TA"]
[PlyCount "86"]
[EventDate "2022.07.13"]
[EventType "swiss"]
[EventCountry "SUI"]
[SourceTitle "playchess.com"]
[Source "ChessBase"]
[SourceQuality "1"]
[TimeControl "40/5400+30:1800+30"]

{[%evp 10,86,61,35,47,34,32,21,33,7,7,-13,50,31,28,16,11,-20,-4,-11,-14,-15,-8,-15,-21,-32,-27,-33,-25,-45,-33,-98,-38,-108,-62,-95,-96,-120,-100,-91,-86,-97,-91,-91,-102,-95,-89,-215,-210,-201,-157,-174,-160,-275,-231,-282,-242,-296,-279,-403,-384,-521,-449,-617,-439,-443,-439,-433,-400,-745,-418,-403,0,-735,-709,-683,-541,-479,-477]} 1. d4 {[%emt 0:07:24]} Nf6 {[%emt 0:00:43]} 2. c4 {[%emt 0:01:03]} g6 {[%emt 0:00:14]} 3. Nc3 {[%emt 0:01:05]} Bg7 {[%emt 0:00:31]} 4. e4 {[%emt 0:00:13]} d6 {[%emt 0:00:07]} 5. Be2 {[%emt 0:00:07]} O-O {[%emt 0:04:03]} 6. Be3 {[%emt 0:02:50]} Na6 {[%emt 0:02:10] E73: King's Indian: Averbakh Variation without 6...c5.} 7. h3 {[%emt 0:10:35]} e5 {[%emt 0:08:55]} 8. d5 {[%emt 0:28:38]} ({But not} 8. Nf3 exd4 9. Bxd4 (9. Qxd4 Ng4 $15) 9... Re8 $15) 8... Nc5 {[%emt 0:00:11] The position is equal.} 9. Bf3 {[%emt 0:01:47]} a5 {[%emt 0:02:46]} 10. g4 {[%emt 0:06:08][%cal Bg2g4,Bg4g5][%mdl 32]} Bd7 {[%emt 0:18:32]} ({Black should play} 10... c6 $11) 11. Nge2 {[%emt 0:00:47] [#]} c6 $146 {[%emt 0:14:37]} ({Predecessor:} 11... Qe7 12. Qd2 Rfd8 13. g5 Ne8 14. h4 a4 15. h5 f5 16. exf5 gxf5 17. h6 Bh8 {1-0 (38) Domogaev,S (2469)-Stepanov,A (2231) Bogoroditsk 2011}) 12. g5 {[%emt 0:16:34]} Ne8 {[%emt 0:00:26]} 13. Ng3 {[%emt 0:00:49]} Nc7 {[%emt 0:01:51]} 14. h4 {[%emt 0:04:27]} b5 {[%emt 0:09:50]} 15. dxc6 {[%emt 0:04:05]} (15. Be2 {feels hotter.} bxc4 16. Bxc4 Rb8 17. dxc6 Bxc6 18. b3) 15... Bxc6 {[%emt 0:00:16]} 16. Bxc5 {[%emt 0:01:45]} dxc5 {[%emt 0:00:14]} 17. Qxd8 {[%emt 0:00:12]} Rfxd8 {[%emt 0:01:22]} 18. Nd5 {[%emt 0:00:59]} Bxd5 {[%emt 0:03:45]} 19. cxd5 {[%emt 0:03:07]} a4 {[%emt 0:01:11]} 20. Nf1 {[%emt 0:03:18] [#]} (20. Bd1 $15) 20... c4 {[%emt 0:10:18]} (20... a3 $1 $17 {[%cal Ra3b2]} 21. b3 {[#]} Nxd5 $1 {[%mdl 512]} 22. exd5 e4) 21. Ne3 {[%emt 0:00:08]} (21. a3 $15) 21... Na6 {[%emt 0:00:34]} (21... a3 $17 22. b3 cxb3 23. axb3 Bf8) 22. h5 {[%emt 0:04:29]} Nc5 {[%emt 0:03:23]} 23. hxg6 {[%emt 0:00:08]} hxg6 {[%emt 0:00:10]} 24. a3 {[%emt 0:00:39]} Bf8 {[%emt 0:04:44][%cal Bg7f8,Bf8e7,Be7g5,Bg5f6][%mdl 32] Black is more active.} 25. Ng4 {[%emt 0:00:48] Intending Nf6+ and mate.} Be7 {[%emt 0:00:06]} 26. Nxe5 {[%emt 0:00:31]} Bxg5 {[%emt 0:00:41]} 27. Nc6 {[%emt 0:00:03]} Re8 {[%emt 0:00:16]} 28. Kd1 {[%emt 0:01:17]} (28. d6 $17) 28... Nxe4 $19 {[%emt 0:01:47]} 29. Kc2 {[%emt 0:00:13]} Nd6 {[%emt 0:04:24]} 30. Rag1 {[%emt 0:00:27]} Bf6 {[%emt 0:00:28]} 31. Bg4 {[%emt 0:00:28]} (31. Rh3 $17) 31... Kg7 {[%emt 0:01:28]} 32. Rg2 {[%emt 0:00:26]} Rh8 {[%emt 0:02:57]} 33. Rhg1 {[%emt 0:00:02]} Rae8 {[%emt 0:01:02]} 34. f4 {[%emt 0:00:24]} (34. Nb4 $142) 34... Re3 {[%emt 0:00:34]} 35. f5 {[%emt 0:00:24]} Rb3 {[%emt 0:01:07]} 36. Kc1 {[%emt 0:00:30]} g5 {[%emt 0:00:41] Strongly threatening ...c3.} 37. Bd1 {[%emt 0:00:15]} Re3 {[%emt 0:00:09] Hoping for ...c3.} 38. Bc2 {[%emt 0:00:15]} Rhe8 {[%emt 0:00:30]} 39. Kd2 {[%emt 0:00:46]} (39. Kd1 $142) 39... Rh3 {[%emt 0:01:48]} 40. Kc1 {[%emt 0:00:38]} Rhe3 {[%emt 0:00:31]} (40... Ree3 $142 41. Na5 Ref3) 41. Kd2 $1 {[%emt 0:04:10]} c3+ {[%emt 0:02:39] Black is clearly winning.} 42. bxc3 {[%emt 0:00:12]} Bxc3+ {[%emt 0:00:05]} 43. Kc1 {[%emt 0:00:29]} Re1+ {[%emt 0:00:08] Weighted Error Value: White=0.37/Black=0.40} 0-1

[Event "55th Biel Festival MTO 2022"]
[Site "Biel"]
[Date "2022.07.20"]
[Round "7.25"]
[White "Mamedov Edgar"]
[Black "Katz, Alexander"]
[Result "0-1"]
[ECO "D38"]
[WhiteElo "2227"]
[BlackElo "2402"]
[Annotator "TA"]
[PlyCount "94"]
[EventDate "2022.07.13"]
[EventType "swiss"]
[EventCountry "SUI"]
[SourceTitle "playchess.com"]
[Source "ChessBase"]
[SourceQuality "1"]
[TimeControl "40/5400+30:1800+30"]

{[%evp 14,94,10,11,27,-9,29,21,30,21,50,50,47,46,60,0,7,6,6,0,0,0,0,0,7,0,0,0,0,-13,-12,-25,-13,-15,-9,-14,-11,-15,0,-37,-41,-52,-59,-49,-50,-73,0,-139,-89,-212,-197,-292,-309,-704,-709,-700,-700,-605,-587,-1078,-1062,-1070,-1070,-1068,-1069,-1050,-1062,-1060,-1058,-1047,-1060,-988,-906,-5651,-5569,-29975,-29976,-29989,-29986,-29987,-29988,-29988,-29989]} 1. d4 {[%emt 0:00:23]} Nf6 {[%emt 0:00:06]} 2. c4 {[%emt 0:00:43]} e6 {[%emt 0:00:06]} 3. Nf3 {[%emt 0:00:18]} d5 {[%emt 0:00:07]} 4. Nc3 {[%emt 0:00:28]} Bb4 {[%emt 0:00:08]} 5. Qa4+ {[%emt 0:00:52]} Nc6 {[%emt 0:00:10]} 6. Bg5 {[%emt 0:00:48]} h6 {[%emt 0:03:09]} 7. Bxf6 {[%emt 0:01:47]} Qxf6 {[%emt 0:00:18]} 8. e3 {[%emt 0:00:28]} O-O {[%emt 0:02:04] D38: Queen's Gambit Declined: Ragozin Defence (4 Nf3 Bb4).} 9. Qc2 {[%emt 0:06:44]} Rd8 {[%emt 0:10:05]} 10. a3 {[%emt 0:04:57]} Bf8 {[%emt 0:02:46] [#] The position is equal.} 11. Bd3 $146 {[%emt 0:13:58]} ({Predecessor:} 11. Rd1 b6 12. Qa4 Bd7 13. cxd5 Ne7 14. Qc2 exd5 15. Ne5 Bf5 16. Bd3 c5 17. O-O {1-0 (38) Fridman,D (2639)-Aleksandrov,A (2619) Liepaja 2015}) 11... g6 {[%emt 0:12:56]} 12. O-O {[%emt 0:03:48]} b6 {[%emt 0:03:36]} 13. b4 {[%emt 0:13:06]} Bb7 {[%emt 0:05:33]} 14. c5 {[%emt 0:06:03]} (14. cxd5 $14 exd5 15. Rfc1) 14... bxc5 {[%emt 0:01:36]} 15. bxc5 {[%emt 0:00:55]} e5 {[%emt 0:02:50][%cal Re5d4]} 16. dxe5 {[%emt 0:05:18]} Nxe5 {[%emt 0:00:35]} 17. Nxe5 {[%emt 0:00:52]} Qxe5 {[%emt 0:00:06]} 18. Nb5 {[%emt 0:00:58] Inhibits d4.} Bc6 {[%emt 0:10:03]} 19. Nd4 {[%emt 0:02:37]} Be8 {[%emt 0:00:16]} 20. Rab1 {[%emt 0:07:17]} Rab8 {[%emt 0:00:55]} 21. Bb5 {[%emt 0:14:00]} Bxb5 {[%emt 0:04:22]} 22. Nxb5 {[%emt 0:04:10]} a6 {[%emt 0:15:54]} 23. Nd4 {[%emt 0:00:27] [#] Black must now prevent Nc6.} Qe4 {[%emt 0:00:53]} 24. Rxb8 {[%emt 0:08:13]} Rxb8 {[%emt 0:00:58]} 25. Qc3 {[%emt 0:00:25]} Rb1 {[%emt 0:04:37][%cal Of8c5]} 26. f3 {[%emt 0:00:30]} Rxf1+ {[%emt 0:00:08]} 27. Kxf1 $15 {[%emt 0:00:02][%mdl 4096] Endgame KQB-KQN} Qb1+ {[%emt 0:00:09]} 28. Kf2 {[%emt 0:00:21]} Qa2+ {[%emt 0:00:06]} 29. Kf1 {[%emt 0:00:51]} Be7 {[%emt 0:06:52]} (29... h5 $17) 30. Qb3 {[%emt 0:02:40] [#]} (30. Nc6 $1 $11 Bf8 31. f4) 30... Qd2 {[%emt 0:01:52]} ({Better is} 30... Qa1+ $1 31. Kf2 Bxc5 32. Qxd5 Qb2+ 33. Kg3 Bd6+ 34. f4 Qxa3) 31. Qb8+ {[%emt 0:01:07] This costs White the game.} (31. c6 $17) 31... Kg7 $19 {[%emt 0:01:05]} 32. Qxc7 {[%emt 0:00:08]} (32. Qb3 $142) 32... Qxe3 {[%emt 0:00:19] Threatens to win with ...Bh4.} 33. g3 {[%emt 0:01:08] Against Bh4} (33. f4) 33... Bf6 {[%emt 0:01:32]} ({Not} 33... Qc1+ 34. Ke2 $17) 34. Ne2 {[%emt 0:00:21]} Qxf3+ {[%emt 0:00:13]} 35. Ke1 {[%emt 0:00:02]} Qh1+ {[%emt 0:00:57]} 36. Kd2 {[%emt 0:00:26]} Bg5+ {[%emt 0:00:27]} 37. Nf4 {[%emt 0:00:16]} Qxh2+ {[%emt 0:00:13]} 38. Kd1 {[%emt 0:00:16]} Qh1+ {[%emt 0:01:06]} 39. Kd2 {[%emt 0:00:09]} Qg2+ {[%emt 0:00:00]} 40. Kd1 {[%emt 0:00:20]} Qf3+ {[%emt 0:00:47]} 41. Kc2 {[%emt 0:30:27]} Qe4+ {[%emt 0:33:09]} 42. Kd1 {[%emt 0:00:00]} h5 {[%emt 0:00:00][%cal Bh6h5,Bh5h4,Bh4g3][%mdl 32] And now ...h4 would win.} 43. c6 {[%emt 0:00:00]} h4 {[%emt 0:00:00]} 44. Qa5 {[%emt 0:00:00]} hxg3 {[%emt 0:00:00] Black mates.} 45. c7 {[%emt 0:00:00]} Qxf4 {[%emt 0:00:00]} 46. c8=Q {[%emt 0:00:00]} Qf1+ {[%emt 0:00:00]} 47. Kc2 {[%emt 0:00:00]} Qc1+ {[%emt 0:00:00][%mdl 64] Skewer.  Weighted Error Value: White=0.75/Black=0.07 (flawless)} 0-1

[Event "55th Biel Festival MTO 2022"]
[Site "Biel"]
[Date "2022.07.20"]
[Round "7.26"]
[White "Hilby Craig"]
[Black "Gomez Barrera Javiera Belen"]
[Result "1-0"]
[ECO "D02"]
[WhiteElo "2422"]
[BlackElo "2210"]
[Annotator "TA"]
[PlyCount "113"]
[EventDate "2022.07.13"]
[EventType "swiss"]
[EventCountry "SUI"]
[SourceTitle "playchess.com"]
[Source "ChessBase"]
[SourceQuality "1"]
[TimeControl "40/5400+30:1800+30"]

{[%evp 9,113,20,36,31,18,27,36,26,27,30,32,34,22,27,41,33,42,12,31,32,53,51,50,43,40,55,44,21,36,34,27,0,13,-34,0,0,0,0,0,0,0,0,16,0,50,0,62,0,24,22,33,39,68,75,97,22,33,36,101,95,283,126,157,112,97,75,82,44,26,0,92,54,62,78,137,94,152,148,154,151,159,166,187,187,387,369,367,364,316,311,406,316,662,662,847,771,598,592,737,730,29967,29970,29964,29963,29988,29989]} 1. d4 {[%emt 0:03:14]} Nf6 {[%emt 0:00:35]} 2. Nf3 {[%emt 0:00:06]} g6 {[%emt 0:00:10]} 3. Nbd2 {[%emt 0:00:06]} d5 {[%emt 0:03:03]} 4. e3 {[%emt 0:00:05]} Bg7 {[%emt 0:01:10]} 5. b4 {[%emt 0:00:05]} a5 {[%emt 0:10:02]} 6. b5 {[%emt 0:00:08] D02: 1 d4 d5 2 Nf3 sidelines, including 2...Nf6 3 g3 and 2...Nf6 3 Bf4.} c5 {[%emt 0:05:00]} 7. bxc6 {[%emt 0:00:07]} bxc6 {[%emt 0:06:07]} 8. Ba3 {[%emt 0:01:25] White is slightly better.} O-O {[%emt 0:16:08]} 9. Be2 {[%emt 0:07:38]} Re8 {[%emt 0:05:33]} 10. O-O {[%emt 0:01:07]} Nbd7 {[%emt 0:09:07]} 11. c4 {[%emt 0:00:58]} Ba6 {[%emt 0:08:11][%cal Oc6c5] [#]} 12. Rb1 $146 {[%emt 0:06:44]} ({Predecessor:} 12. Rc1 e5 13. cxd5 cxd5 14. dxe5 Nxe5 15. Nxe5 Rxe5 16. Nf3 Re8 17. Bxa6 Rxa6 18. Qd3 {0-1 (54) Xiong,J (2700)-Drozdowski,K (2448) Chess.com INT 2021}) 12... Qc7 {[%emt 0:06:38]} 13. Qc2 {[%emt 0:06:13]} Bf8 {[%emt 0:09:07]} 14. Rfc1 {[%emt 0:04:48]} e5 {[%emt 0:04:43]} 15. Bxf8 {[%emt 0:00:46]} Rxf8 {[%emt 0:00:17]} 16. Nxe5 {[%emt 0:03:54]} Nxe5 {[%emt 0:00:07]} 17. dxe5 {[%emt 0:00:07]} Qxe5 {[%emt 0:01:13]} 18. Nb3 {[%emt 0:03:15]} dxc4 {[%emt 0:03:03]} 19. Nd4 {[%emt 0:05:53]} c5 {[%emt 0:04:24]} 20. Nf3 {[%emt 0:01:31]} (20. Nc6 $5 {[%cal Rc6e5]} Qc7 21. Bf3 $11) 20... Qe6 {[%emt 0:01:19]} 21. Qa4 {[%emt 0:07:18]} (21. Bxc4 $11 Qxc4 22. Qxc4 Bxc4 23. Rxc4) 21... c3 {[%emt 0:01:48]} 22. Bxa6 {[%emt 0:00:21]} Rxa6 {[%emt 0:00:01]} 23. Rxc3 {[%emt 0:00:43]} Ne4 {[%emt 0:00:31]} 24. Rc4 {[%emt 0:01:45]} Re8 {[%emt 0:00:01]} 25. Rbc1 {[%emt 0:02:47]} Raa8 {[%emt 0:01:10]} 26. h3 {[%emt 0:00:37]} Re7 {[%emt 0:01:57]} (26... Rad8 $11) 27. Qa3 {[%emt 0:05:11]} (27. Qc2 $14) 27... Qd5 {[%emt 0:01:31]} (27... Rd7 $11) 28. Qb3 {[%emt 0:02:06]} (28. Nh2 $14) 28... Ree8 {[%emt 0:00:52]} 29. Qa4 {[%emt 0:09:58]} Qe6 {[%emt 0:00:17]} (29... h5 {seems wilder.} 30. Nh2 Qd2 31. Qc2 Rad8) 30. Qc2 {[%emt 0:02:01]} Qd5 {[%emt 0:00:42]} 31. Rd1 {[%emt 0:06:03]} Qe6 {[%emt 0:00:18] [#]} 32. Ne1 {[%emt 0:00:13]} ({White should play} 32. Nd2 $1 $16 {[%cal Rd2e4]} Nxd2 33. Rxd2) 32... Rac8 {[%emt 0:00:46]} 33. Nd3 {[%emt 0:00:34]} Red8 {[%emt 0:00:36]} ({Better is} 33... Rcd8 $14) 34. Rc1 $16 {[%emt 0:00:41] Strongly threatening Nf4.} Qf5 {[%emt 0:00:27] [#]} (34... Qe8 $16 {was worth a try.}) 35. Nf4 {[%emt 0:01:15]} ({Less strong is} 35. Nxc5 Re8 36. a3 (36. Nxe4 Rxc4 37. Qxc4 Qxe4 $16) 36... Re5 37. Nxe4 Rxc4 38. Qxc4 Qxe4 $16) (35. g4 $1 $18 {[%cal Rg4f5] is the precise move to win.} Qf3 36. Ne5 Qxf2+ 37. Qxf2 Nxf2 38. Kxf2) 35... Re8 {[%emt 0:00:31]} 36. Rd1 {[%emt 0:00:49]} Qe5 {[%emt 0:00:29]} 37. Rd5 {[%emt 0:00:48]} Qe7 {[%emt 0:00:23]} 38. Nd3 {[%emt 0:04:25] Black must now prevent Re5.} Qb7 {[%emt 0:00:37]} 39. Nf4 $36 {[%emt 0:02:11][%mdl 2048] White is more active.} (39. Re5 $11 Rxe5 40. Nxe5) 39... Qe7 $1 {[%emt 0:00:27]} 40. a4 {[%emt 0:03:47]} Rb8 {[%emt 0:01:05]} 41. Rd1 {[%emt 0:31:29] White stays focused until the end.} Kf8 {[%emt 0:17:55]} ({Black should try} 41... f5) 42. Rc1 {[%emt 0:00:00]} Qe5 {[%emt 0:05:53]} (42... Kg7 $142) 43. Nd3 {[%emt 0:00:00][%csl LRc5,LRe5]} Qf6 {[%emt 0:00:15]} 44. Nxc5 {[%emt 0:00:00]} Nxc5 {[%emt 0:00:38]} 45. Rf4 {[%emt 0:00:00]} ({Not} 45. Rxc5 $2 Rb2 46. Rxa5 Rxc2 47. Rxc2 Rd8 $19) 45... Qe7 {[%emt 0:02:53]} 46. Qxc5 {[%emt 0:00:00]} Rec8 $2 {[%emt 0:00:46]} (46... Ra8 {is a better defense.} 47. Qb6 Reb8) 47. Qxc8+ $18 {[%emt 0:00:00]} Rxc8 {[%emt 0:00:01]} 48. Rxc8+ {[%emt 0:00:00][%mdl 4096] Endgame KQ-KRR} Kg7 {[%emt 0:00:03]} 49. Rd4 {[%emt 0:00:00] Prevents Qd6.} h5 {[%emt 0:01:04]} 50. h4 {[%emt 0:00:00]} Qe5 $2 {[%emt 0:01:15]} (50... Qb7) 51. Rcd8 {[%emt 0:00:00]} Qc5 {[%emt 0:00:58]} 52. R8d7 {[%emt 0:00:00] aiming for Rf4.} Qc1+ {[%emt 0:00:40]} 53. Kh2 {[%emt 0:00:00]} Qc6 {[%emt 0:00:42]} 54. Ra7 {[%emt 0:00:00] And now Rf4 would win.} Qf6 {[%emt 0:00:44]} 55. Rf4 {[%emt 0:00:00] White mates.} Qe5 {[%emt 0:01:54]} 56. g3 {[%emt 0:00:00]} Kh6 {[%emt 0:01:43]} 57. Rfxf7 {[%emt 0:00:00] Weighted Error Value: White=0.17 (very precise) /Black=0.48} 1-0